Cogmind - Beta 14 @@@ ROGUE MODE // 2024.08.16 @ 14:07:36 Player: 3.14 Result: Destroyed by Triborg with Siege Cannon Performance ------------- Evolutions (0) 0 Regions Visited (4) 800 Robots Destroyed (30) 150 Value Destroyed (563) 563 Prototype IDs (11) 220 Alien Tech Used (0) 0 Bonus (300) 300 TOTAL SCORE: 2033 Bonus ------- Registered with UFD 300 Cogmind --------- Core Integrity 0/250 Matter 289/300 Energy 290/290 System Corruption 0% Temperature Cool (12) Movement Core (1650) Ox32 Location -8/Scraptown Parts ------- > --- POWER (1) -------- Improved Deuterium Engine > --- PROPULSION (2) --- (None) > --- UTILITY (2) ------ Huge Storage Unit Makeshift Light Armor Plating > --- WEAPON (2) ------- Companion Sword > --- INVENTORY (25) --- Subdweller Power Source Overtuned Treads Overtuned Treads Heat Sink Experimental Sensor Array Makeshift Light Armor Plating Makeshift Light Armor Plating Layered Medium Armor Plating EM Disruption Field Improved Hacking Suite Improved Hacking Suite Cobbler Unit Subdweller Laser Makeshift Laser Subdweller Beam Cannon Assault Rifle Subdweller Machine Gun Subdweller Machine Gun Subdweller Machine Gun Subdweller Machine Gun Barrage Gun Barrage Gun Subdweller Shrapnel Launcher Subdweller Shrapnel Launcher Peak State ------------ > --- POWER ------------ Improved Deuterium Engine > --- PROPULSION ------- Light Treads Overtuned Treads > --- UTILITY ---------- Huge Storage Unit Makeshift Light Armor Plating > --- WEAPON ----------- Companion Sword > --- INVENTORY -------- Subdweller Power Source Light Treads Overtuned Treads Heat Sink Experimental Sensor Array Makeshift Light Armor Plating Makeshift Light Armor Plating Layered Medium Armor Plating EM Disruption Field Improved Hacking Suite Improved Hacking Suite Cobbler Unit Subdweller Laser Makeshift Laser Subdweller Beam Cannon Assault Rifle Subdweller Machine Gun Subdweller Machine Gun Subdweller Machine Gun Subdweller Machine Gun Barrage Gun Barrage Gun Subdweller Shrapnel Launcher Subdweller Shrapnel Launcher [Rating: 26] Favorites ----------- Power Ion Engine Engine Ion Engine Propulsion Light Treads Treads Light Treads Leg Aluminum Leg Utility Heat Sink Device Heat Sink Storage Huge Storage Unit Protection Makeshift Light Armor Plating Weapon Subdweller Laser Energy Gun Subdweller Laser Energy Cannon Subdweller Beam Cannon Ballistic Gun Light Assault Rifle Launcher Grenade Launcher Slashing Weapon Companion Sword Build | -11 -10 -10 -8 -8 ------- Run | Yrd Mat Sub Rec Scr Slots Evolved . | . . . . . Power . | . . . . . Propulsion . | . . . . . Utility . | . . . . . Weapon . | . . . . . Parts Attached 36 | . 6 8 6 16 Power 6 | . 1 1 2 2 Engine 6 | . 1 1 2 2 Core . | . . . . . Reactor . | . . . . . Propulsion 8 | . 1 2 . 5 Treads 7 | . . 2 . 5 Leg 1 | . 1 . . . Wheel . | . . . . . Hover . | . . . . . Flight . | . . . . . Utility 9 | . 3 1 3 2 Device 3 | . 1 . 2 . Storage 5 | . 2 1 1 1 Processor . | . . . . . Hackware . | . . . . . Protection 1 | . . . . 1 Artifact . | . . . . . Weapon 13 | . 1 4 1 7 Energy Gun 5 | . . 1 . 4 Energy Cannon 3 | . 1 1 1 . Ballistic Gun 2 | . . 1 . 1 Ballistic Cannon . | . . . . . Launcher 2 | . . 1 . 1 Special Weapon . | . . . . . Impact Weapon . | . . . . . Slashing Weapon 1 | . . . . 1 Piercing Weapon . | . . . . . Special Melee Weapon . | . . . . . Unidentified Prototypes 1 | . . . . 1 Parts Lost 4 | . . 1 . 3 Power 2 | . . 1 . 1 Propulsion 2 | . . . . 2 Utility . | . . . . . Weapon . | . . . . . Highest Loss Streak 2 | . . 1 . 2 To Critical Strikes . | . . . . . Average Slot Usage (%) 93 | . 97 99 91 90 Engine 13 | . 14 13 13 12 Treads 23 | . . 26 28 26 Leg 4 | . 27 1 . . Device 13 | . 11 14 13 13 Storage 12 | . 14 14 7 13 Energy Gun 8 | . 8 . 14 8 Energy Cannon 9 | . 5 13 14 7 Ballistic Gun 4 | . 14 14 . . Slashing Weapon 2 | . . . . 4 Peak Build Rating 26 | . 8 11 14 26 Average Rating 12 | . 7 9 12 14 On Entrance 8 | 6 6 8 11 13 Naked Turns . | . . . . . Heaviest Build 98 | 10 50 93 98 98 Greatest Support 40 | 20 20 40 40 40 Greatest Overweight (x) 26 | . 2 2 2 26 Average Overweight (x) 1 | . 1 1 1 1 Largest Inventory Capacity 25 | . 20 25 25 25 Average Capacity 21 | . 15 23 15 24 Most Carried 25 | . 18 24 24 25 Average Carried 18 | . 12 21 12 22 Final Capacity 25 | 8 20 25 25 25 Final Carried 25 | 6 16 24 22 25 Class Distribution -------------------- 100% | Mutant Dominant Class ---------------- Mutant | -10/Materials Mutant | -10/Subcaves Mutant | -8/Recycling Mutant | -8/Scraptown Resources | -11 -10 -10 -8 -8 ----------- Run | Yrd Mat Sub Rec Scr Matter Collected 1512 | 200 78 93 947 194 Remotely . | . . . . . Salvage Created 1430 | . 252 196 871 111 Parts 78 | . 26 14 26 12 Haulers Intercepted 1 | . 1 . . . Recyclers Shooed 2 | . . . 2 . Parts Field Recycled . | . . . . . Retrieved Matter . | . . . . . Parts Self-Destructed 19 | . . 19 . . Prevented . | . . . . . Kills | -11 -10 -10 -8 -8 ------- Run | Yrd Mat Sub Rec Scr Combat Hostiles Destroyed 19 | . 10 7 . 2 Melee 2 | . . . . 2 Guns 9 | . 7 2 . . Cannons 4 | . 3 1 . . AOE 4 | . . 4 . . Classes Destroyed 10 | . 4 2 2 2 Builder 1 | . . . 1 . Hauler 1 | . 1 . . . Recycler 6 | . . . 6 . Operator 1 | . 1 . . . Turret 2 | . . 2 . . Swarmer 12 | . 8 4 . . Grunt 2 | . 2 . . . Subdweller 3 | . . 3 . . Guru 1 | . . . . 1 Elite 1 | . . . . 1 Best Kill Streak 6 | . 3 6 1 1 Combat Bots Only 4 | . 3 4 . 1 Max Kills in Single Turn 2 | . 2 2 1 1 Gunslinging 1 | . 1 . . . Exploded 2 | . . 2 . . Melee 1 | . . . . 1 Uniques/NPCs Destroyed . | . . . . . Combat | -11 -10 -10 -8 -8 -------- Run | Yrd Mat Sub Rec Scr Hostile Shots Fired 148 | . 25 53 . 70 Missed 46 | . 10 13 . 23 Damage Taken 1545 | . 136 460 . 949 Core 324 | . 19 59 . 246 Absorbed by Shields . | . . . . . Regen/Repaired (Parts) 26 | . 26 . . . Core Remaining (%) 100 | 100 . . . . Volleys Fired 79 | . 28 28 20 3 Largest 2 | . 2 2 2 1 Hottest 140 | . 80 120 140 40 Shots Fired 144 | . 56 45 40 3 Gun 94 | . 52 22 20 . Cannon 41 | . 4 17 20 . Launcher 9 | . . 6 . 3 Special . | . . . . . Kinetic 51 | . 28 20 . 3 Thermal 87 | . 28 19 40 . Explosive 6 | . . 6 . . Electromagnetic . | . . . . . Robot Hit Streak 18 | . 7 18 7 . Robot Miss Streak 3 | . 3 2 2 . Penetration Max . | . . . . . Secondary Targets 2 | . 2 . . . Max Gunslinging Chain 1 | . 1 . . . Shots Hit Robots 93 | . 36 27 22 8 Core Hits 51 | . 20 19 9 3 Critical Kills . | . . . . . Critical Parts Destroyed 2 | . 1 1 . . Critical Strikes 2 | . 1 1 . . Destroy 2 | . 1 1 . . Melee Attacks 18 | . . . . 18 Impact . | . . . . . Slashing 18 | . . . . 18 Piercing . | . . . . . Sneak Attacks 1 | . . . . 1 Combat Hostiles 1 | . . . . 1 Follow-up Attacks . | . . . . . Damage Inflicted 1913 | . 367 686 508 352 Guns 631 | . 299 168 164 . Cannons 625 | . 54 227 344 . Explosions 291 | . . 291 . . Melee 352 | . . . . 352 Ramming 14 | . 14 . . . Kinetic 271 | . 145 126 . . Thermal 985 | . 208 269 508 . Explosive 291 | . . 291 . . Electromagnetic . | . . . . . Impact . | . . . . . Slashing 352 | . . . . 352 Piercing . | . . . . . Highest Corruption . | . . . . . Average Corruption . | . . . . . Corruption Purged . | . . . . . Corruption Blocked . | . . . . . Overload Shots . | . . . . . Overflow Damage 23 | . . . 23 . Projectiles 23 | . . . 23 . Explosions . | . . . . . Melee . | . . . . . Knockbacks . | . . . . . Impact . | . . . . . Kinetic . | . . . . . Secondary . | . . . . . Self-Inflicted Damage . | . . . . . Shots . | . . . . . Rammed . | . . . . . Targets Rammed 2 | . 2 . . . Kicked 2 | . 2 . . . Crushed . | . . . . . Highest Temperature 380 | . 26 2 380 24 Average Temperature 87 | . 13 2 99 15 Received Heat Transfer 372 | . 30 198 . 144 Siege Activations . | . . . . . Robots Corrupted . | . . . . . Combat Hostiles . | . . . . . Parts Fried . | . . . . . Impact Corruptions . | . . . . . Robots Melted . | . . . . . Combat Hostiles . | . . . . . Parts Melted 4 | . 1 2 . 1 Heat Transferred 1710 | . 461 531 718 . Parts Sabotaged . | . . . . . Parts Stolen . | . . . . . Parts Stripped . | . . . . . Power Chain Reactions . | . . . . . Alert | -11 -10 -10 -8 -8 ------- Run | Yrd Mat Sub Rec Scr Peak Influence 197 | . 197 . 71 . Initial 57 | . . . 57 . Average 48 | . 85 . 23 . Maximum Alert Level . | . . . . . Low Security (%) 100 | . 100 . 100 . Level 1 . | . . . . . Level 2 . | . . . . . Level 3 . | . . . . . Level 4 . | . . . . . Level 5 . | . . . . . High Security . | . . . . . Max Security . | . . . . . Squads Dispatched 2 | . 2 . . . Investigation 1 | . 1 . . . Extermination . | . . . . . Reinforcement 1 | . 1 . . . Assault . | . . . . . Garrison . | . . . . . Intercept . | . . . . . Searches Triggered . | . . . . . Construction Impeded . | . . . . . Haulers Reinforced . | . . . . . Active Scanning Responses . | . . . . . Cargo Convoy Interrupts . | . . . . . Stealth | -11 -10 -10 -8 -8 --------- Run | Yrd Mat Sub Rec Scr Distress Signals 3 | . 3 . . . Communications Jammed . | . . . . . Distress Signals . | . . . . . Times Spotted 42 | . 22 9 . 11 Peak Tracking Total 10 | . 5 6 . 10 Tactical Retreats 5 | . 5 . . . Traps | -11 -10 -10 -8 -8 ------- Run | Yrd Mat Sub Rec Scr Traps Triggered . | . . . . . Indirectly . | . . . . . Trap Hack Attempts . | . . . . . Triggered . | . . . . . Disarmed . | . . . . . Reprogrammed . | . . . . . Reused . | . . . . . Traps Extracted . | . . . . . Installed . | . . . . . Triggered . | . . . . . Machines | -11 -10 -10 -8 -8 ---------- Run | Yrd Mat Sub Rec Scr Machines Disabled 6 | . . 2 4 . Max in Single Turn 2 | . . 1 2 . Machines Repaired . | . . . . . Machines Dismantled . | . . . . . Machines Sabotaged . | . . . . . Overloaded Fab Kills . | . . . . . Hacking | -11 -10 -10 -8 -8 --------- Run | Yrd Mat Sub Rec Scr Machines Accessed 15 | . 7 . 4 4 Terminals 9 | . 6 . 3 . Fabricators . | . . . . . Repair Stations 1 | . 1 . . . Recycling Units 1 | . . . 1 . Scanalyzers . | . . . . . Garrison Access . | . . . . . Total Hacks 66 | . 27 . 11 28 Successful 46 | . 13 . 5 28 Failed 20 | . 14 . 6 . Catastrophic 1 | . 1 . . . Database Lockouts . | . . . . . Manual 28 | . 17 . 11 . Terminals 34 | . 25 . 9 . Fabricators . | . . . . . Repair Stations 2 | . 2 . . . Recycling Units 2 | . . . 2 . Scanalyzers . | . . . . . Garrison Access . | . . . . . Terminal Hacks 34 | . 5 . 1 28 Record 27 | . . . . 27 Robot Analysis 1 | . 1 . . . Prototype ID Bank 2 | . 2 . . . Open Door 1 | . . . . 1 Terminal Index 2 | . 1 . 1 . Hauler Manifests 1 | . 1 . . . Fabricator Hacks . | . . . . . Repair Station Hacks 2 | . 2 . . . Scan Component 1 | . 1 . . . Repair 1 | . 1 . . . Recycling Unit Hacks . | . . . . . Scanalyzer . | . . . . . Garrison Access Hacks . | . . . . . Unauthorized Hacks 10 | . 6 . 4 . Terminals 9 | . 6 . 3 . Operators 1 | . 1 . . . Skim 8 | . 5 . 3 . Fabricators . | . . . . . Repair Stations . | . . . . . Recycling Units 1 | . . . 1 . Mask 1 | . . . 1 . Scanalyzers . | . . . . . Garrison Access . | . . . . . Data Cores Recovered . | . . . . . Used . | . . . . . Hacking Detections 9 | . 5 . 4 . Full Trace Events 1 | . 1 . . . Feedback Events . | . . . . . Feedback Blocked . | . . . . . Robot Schematics Acquired . | . . . . . Robots Built . | . . . . . Authchips . | . . . . . Time . | . . . . . Total Robot Build Rating . | . . . . . Part Schematics Acquired . | . . . . . Parts Built . | . . . . . Authchips . | . . . . . Time . | . . . . . Total Part Build Rating . | . . . . . Parts Repaired 1 | . 1 . . . Time 26 | . 26 . . . Parts Recycled . | . . . . . Recycled Matter . | . . . . . Retrieved Matter . | . . . . . Retrieved Components . | . . . . . Parts Scanalyzed . | . . . . . Part Schematics Acquired . | . . . . . Parts Damaged . | . . . . . Bothacking | -11 -10 -10 -8 -8 ------------ Run | Yrd Mat Sub Rec Scr Used RIF Installer . | . . . . . Robots Hacked . | . . . . . Non-combat . | . . . . . Combat . | . . . . . Robot Hacks Applied . | . . . . . Relay Couplers Released . | . . . . . Fabnet Peak Effective % . | . . . . . Robots Rewired . | . . . . . Allies Hacked . | . . . . . Hacks Repelled . | . . . . . Allies | -11 -10 -10 -8 -8 -------- Run | Yrd Mat Sub Rec Scr Total Allies . | . . . . . Largest Group . | . . . . . Highest-Rated Group . | . . . . . Highest-Rated Ally . | . . . . . Total Orders . | . . . . . Ally Attacks . | . . . . . Total Damage . | . . . . . Kills . | . . . . . Allies Corrupted . | . . . . . Allies Melted . | . . . . . Intel | -11 -10 -10 -8 -8 ------- Run | Yrd Mat Sub Rec Scr Robot Analysis Total 1 | . 1 . . . Derelict Logs Recovered 5 | . . . . 5 Drone Launches . | . . . . . Drone Recoveries . | . . . . . Exploration | -11 -10 -10 -8 -8 ------------- Run | Yrd Mat Sub Rec Scr Turns Passed 9313 | . 1289 1721 2013 4290 Spaces Moved 2953 | 1 447 483 502 1520 Core 259 | . . . . 259 Treads 2213 | . . 450 502 1261 Legs 481 | 1 447 33 . . Wheels . | . . . . . Hover . | . . . . . Flight . | . . . . . Fastest Speed 50 | 120 120 240 160 50 Average Speed 263 | 120 192 298 256 274 Slowest Speed 1350 | 120 260 320 320 1350 Overloaded Moves . | . . . . . Propulsion Burnouts . | . . . . . Robots Hopped . | . . . . . Cave-ins Triggered . | . . . . . Exploration Rate (%) 45 | 2 75 31 42 79 Regions Visited 4 Branch Regions 3 Pre-discovered Areas 5 | . . . . 5 Known Exits Taken 2 | . 1 1 . . Unknown Exits Taken 2 | 1 . . 1 . Scrap Searched 3 | . . . . 3 Spaces Dug 34 | . . 16 . 18 Terrain Destroyed 48 | . . 23 7 18 Melee . | . . . . . Projectile 2 | . . . 2 . AOE 46 | . . 23 5 18 Terrain Rammed . | . . . . . Walls Destroyed . | . . . . . Machines Disabled . | . . . . . Actions | -11 -10 -10 -8 -8 --------- Run | Yrd Mat Sub Rec Scr Total 4348 | . 830 720 1191 1607 Wait 1143 | . 318 188 635 2 Move 2949 | . 446 482 501 1520 Hop . | . . . . . Pick Up 79 | . 18 11 20 30 Fast Attach 12 | . 4 . 2 6 Attach 10 | . . 2 2 6 Detach 3 | . . . . 3 Swap 14 | . 2 6 2 4 Drop 39 | . 12 3 9 15 Fire 79 | . 28 28 20 3 Melee 18 | . . . . 18 Ram . | . . . . . Kick 2 | . 2 . . . Crush . | . . . . . Escape Stasis . | . . . . . Rewire . | . . . . . Trap . | . . . . . Miscellaneous . | . . . . . Route ------- -11/Scrapyard -10/Materials (discovered 6 exits: *Mat x3 / *Min x2 / *Sub) -10/Subcaves (discovered 3 exits: *Mat x2 / *Rec) -8/Recycling -8/Scraptown (discovered 1 exit: [*Fac]) History --------- Turn | Location | Event 1 | -11/Scrapyard | Discovered new exit (range 0) 1 | -11/Scrapyard | Entered Materials 241 | -10/Materials | Discovered new exit (range 14) 315 | -10/Materials | Build established: Mutant 642 | -10/Materials | Discovered new exit (range 10) 786 | -10/Materials | Discovered new exit (range 8) 987 | -10/Materials | Learned Storage emergency access door positions 1009 | -10/Materials | Repaired Aluminum Leg 1065 | -10/Materials | Identified exit to Subcaves 1065 | -10/Materials | Identified exit to Materials 1089 | -10/Materials | Loaded intel: 1 repair station location 1103 | -10/Materials | Learned Storage emergency access door positions 1109 | -10/Materials | Learned location of 2 exits from Subcaves 1113 | -10/Materials | Learned location of 2 exits from Subcaves 1126 | -10/Materials | Learned Materials emergency access door positions 1149 | -10/Materials | Identified exit to Mines 1290 | -10/Materials | Entered Subcaves 1291 | -10/Subcaves | Identified exit to Materials 1291 | -10/Subcaves | Identified exit to Recycling 2017 | -10/Subcaves | A swath of the cavern ceiling suddenly collapsed 2882 | -10/Subcaves | Shifting Twisted Machinery released Mak. Light Armor Plating 3011 | -10/Subcaves | Entered Recycling 4928 | -8/Recycling | Scanned before Scraplab entrance 4973 | -8/Recycling | Entered Scraplab 5018 | -8/Recycling | Discovered new exit (range 2) 5024 | -8/Recycling | Entered Scraptown 5403 | -8/Scraptown | Visited SPCMW 5435 | -8/Scraptown | Visited Spacefarers 5582 | -8/Scraptown | Visited Red Mages 5796 | -8/Scraptown | Scanned Subdweller tech in exchange for log data 5803 | -8/Scraptown | Learned 12 Research zone layouts 5806 | -8/Scraptown | Learned location of Quarantine (-2) 5812 | -8/Scraptown | Learned location of 1 exit from Factory 5816 | -8/Scraptown | Learned location of 1 exit from Research 5864 | -8/Scraptown | Discovered new exit (range 7) 6323 | -8/Scraptown | Visited CR-KLE's Repair Center 6435 | -8/Scraptown | Visited Comm Corps 6589 | -8/Scraptown | Visited The Evicted 7305 | -8/Scraptown | Visited UFD Registry 7305 | -8/Scraptown | Registered with UFD as "Cryoslider" 7407 | -8/Scraptown | Visited Cartography Club 7479 | -8/Scraptown | Learned location of Zion (-7) 7479 | -8/Scraptown | Learned location of Extension (-4) 7479 | -8/Scraptown | Learned location of Archives (-4) 7479 | -8/Scraptown | Learned 16 Factory zone layouts 7479 | -8/Scraptown | Learned 20 Factory zone layouts 7479 | -8/Scraptown | Learned 8 Research zone layouts 7479 | -8/Scraptown | Learned 16 Research zone layouts 7479 | -8/Scraptown | Learned 8 Access zone layouts 7479 | -8/Scraptown | Learned 20 Lower Caves zone layouts 7479 | -8/Scraptown | Learned 12 Upper Caves zone layouts 7479 | -8/Scraptown | Learned 8 Proximity Caves zone layouts 7479 | -8/Scraptown | Learned 16 Proximity Caves zone layouts 7479 | -8/Scraptown | Learned location of 1 exit from Lower Caves 7479 | -8/Scraptown | Learned location of 2 exits from Proximity Caves 7836 | -8/Scraptown | Visited Sword Containment 7942 | -8/Scraptown | Visited Research Penetration Think Tank 8019 | -8/Scraptown | Visited Infowarlord's Domain 8246 | -8/Scraptown | Visited Scrapoid Pod Storage 8307 | -8/Scraptown | Visited Abandonware Association 8346 | -8/Scraptown | Learned abandonware demo "TRNCOAT.EXE" 8346 | -8/Scraptown | Learned abandonware demo "MELTYB.EXE" 8694 | -8/Scraptown | Found Exp. Sensor Array 9119 | -8/Scraptown | Attacked by Scraptown defenders 9284 | -8/Scraptown | Core integrity fell below 50% 9308 | -8/Scraptown | Core integrity fell below 20% 9314 | -8/Scraptown | Destroyed by Triborg with Siege Cannon Last Messages --------------- 09286_ Acquired 41 matter. 09292_ Triborg activates siege mode. 09293_ Triborg exits siege mode. 09298_ IN-7TV(j): "We're here to scrap you, Cryoslider!" 09299_ Triborg exits siege mode. 09305_ Triborg activates siege mode. 09305_ Penetrated by Siege Slug. 09305_ Lgt. Treads destroyed. 09307_ Penetrated by Siege Slug. 09307_ Lgt. Treads destroyed. 09307_ Knocked back. 09310_ Triborg exits siege mode. 09310_ IN-7TV(j) heat damages Ovr. Pulse Rifle. 09311_ OE-1NF(r) follow-up attacks with Ripteeth. 09312_ Triborg activates siege mode. 09312_ Penetrated by Siege Slug. 09312_ Knocked back. 09313_ Acquired 15 matter. 09314_ OE-1NF(r) follow-up attacks with Ripteeth. 09314_ Penetrated by Siege Slug. Map ----- +----------------------------------------------------+ | #??????###"" "## "#???????????????????????? | | ######## #"" "## "#???????????????????????? | | !"#???????????????????????? | | "## "#???????????????????????? | | ######## #"" "## "#???????????????????????? | | #??????###"" "##"""" #???????????????????????? | | #????????#"" "########???????????????????????? | | ?????????#"" "############???????????????????? | | #????????#"" "## "#???????????????????? | | ##########"" "## ""#???????????????????? | | """""""""""" "## """" "#???????????????????? | | """""""""""" "### "#???????????????????? | | "## "#X ""#???????????????????? | | "## "### "#???????????????????? | | "## """" "#???????????????????? | | ## ""#???????????????????? | | # "#???????????????????? | | """""""" """""" ############???????????????????? | | ######## ###### #??????????????????????????????? | | #????# #??# #??????????????????????????????? | | #????# #??# #??????????????????????????????? | | #????# #??# #??????????????????????????????? | | #????# #??# #????#####?????????????????????? | | #????# #??# #?#### #?????????????????????? | | #????# #??# ###;;#* ###???????????????????? | | #????# #??# TT[@ #???????????????????? | | #????# #??# c jTTrrx ##???????????????????? | | ?????#######??# %j j #???????????????????? | | ??????????????# [[ j #???????????????????? | | ??????????????#== ! j #???????????????????? | | ??????????????#! !###### #???????????????????? | | ############### ###### #???????????????????? | | #"""##"""##"|"# """"##### #???????????????????? | | #"""##""|##" # "" "#???####???????????????????? | | "#??????????????????????????? | | " "#??????????????????????????? | | ! ! """"#??????????????????????????? | | #" "##!! ##""|## ######??????????????????????????? | | #"""##"""##"""####???????????????????????????????? | | ###############??????????????????????????????????? | | ?????????????????????????????????????????????????? | | ?????????????????????????????????????????????????? | | ?????????????????????????????????????????????????? | | ?????????????????????????????????????????????????? | | ?????????????????????????????????????????????????? | | ?????????????????????????????????????????????????? | | ?????????????????????????????????????????????????? | | ?????????????????????????????????????????????????? | | ?????????????????????????????????????????????????? | | ?????????????????????????????????????????????????? | +----------------------------------------------------+ Best States ------------- Heat Dissipation 35 Energy Generation 16 Energy Capacity 290 Matter Stores 300 Matter Capacity 300 Sight Range 16 Terrain Scan Density 10 Armor Coverage 100 Evasion (%) 55 Recoil Reduction 2 Item Schematics ----------------- None Robot Schematics ------------------ None Fabricated ------------ Nothing Alien Tech Used ----------------- None Achievements -------------- None Challenges ------------ None Game ------ Seed ReactionAccelerationPit Manual? 0 Play Time 00:28:46 Cumulative 904.7 hours Start 2024.08.16 @ 13:43:36 End 2024.08.16 @ 14:07:36 Sessions 1 Manual Loads 0 Difficulty Rogue Special Mode None Game No. 1457 Rogue 1457 Adventurer 0 Explorer 0 Win Type - Total 87 Types 53/1/14/14/4/0/0/1/0 Lore% 80 Gallery% 88 Achievement% 85 Wizard Run 0 Options --------- Layout 0 ASCII 1 Keyboard 0 Movement Numpad Keybinds 0 Fullscreen 2 Font 18/SmallcapsGlow Map View 76x50 Zoom Use 0% Tactical HUD 1 Map Filters NONE Filters NONE Steam 1 RUN: 726bb047-8ac8-4b95-b230-2a5dc8dcf3aa